fUSD/lending_fUSD_20240331
["ID","MTS","AMOUNT","RATE_DAILY","PERIOD"]
[321090339,1711890667237,-1699.03,0.00057534,120]
[321090340,1711890667246,-6457.47,0.00057534,120]
[321090341,1711890667256,-1686.23,0.00057534,120]
[321090342,1711890667266,-500.0,0.00057534,120]
[321090343,1711890667276,-10031.1,0.00057534,120]
[321090344,1711890667285,-500.0,0.00057534,120]
[321090345,1711890667294,-2964.31,0.00057534,120]
[321090346,1711890667304,-500.0,0.00057534,120]
[321090347,1711890667314,-500.0,0.00057534,120]
[321090348,1711890667324,-1738.4,0.00057534,120]
[321090349,1711890667333,-1786.68,0.00057534,120]
[321090350,1711890667343,-1500.14,0.00057534,120]
[321090351,1711890667352,-562.17,0.00057534,120]
[321090352,1711890667362,-693.94,0.00057534,120]
[321090353,1711890667372,-2517.9,0.00057534,120]
[321090354,1711890667381,-500.0,0.00057534,120]
[321090355,1711890667390,-500.0,0.00057534,120]
[321090356,1711890667400,-4170.51,0.00057534,120]
[321090357,1711890667410,-500.0,0.00057534,120]
[321090358,1711890667419,-811.03,0.00057534,120]
[321090359,1711890667428,-500.0,0.00057534,120]
[321090360,1711890667438,-500.0,0.00057534,120]
[321090361,1711890667448,-2488.29,0.00057534,120]
[321090362,1711890667458,-559.28,0.00057534,120]
[321090363,1711890667468,-14317.17,0.00057534,120]
[321090364,1711890667478,-1685.81,0.00057534,120]
[321090365,1711890667488,-1854.38,0.00057534,120]
[321090366,1711890667500,-12588.85,0.00057534,120]
[321090367,1711890667511,-500.0,0.00057534,120]
[321090368,1711890667522,-1750.28,0.00057534,120]
[321090369,1711890667533,-3585.51,0.00057534,21]
[321090370,1711890667545,-1112.33,0.00057534,120]
[321090371,1711890667555,-524.87,0.00057534,120]
[321090372,1711890667566,-1107.53,0.00057534,120]
[321090373,1711890667577,-500.0,0.00057534,120]
[321090374,1711890667589,-500.0,0.00057534,120]
[321090375,1711890667599,-500.0,0.00057534,120]
[321090376,1711890667610,-1340.14,0.00057534,120]
[321090377,1711890667620,-2408.91199929,0.00057549,2]
[321090378,1711890667630,-604.0,0.00057549,7]
[321090379,1711890667640,-535.256789,0.00057575,2]
[321090380,1711890667649,-209.95555556,0.00057644,120]
[321090381,1711890667659,-300.0,0.000577,30]
[321090382,1711890667669,-161861.4,0.000577,6]
[321090383,1711890667679,-11808.73,0.000577,6]
[321090384,1711890667691,-41602.27,0.000577,6]
[321090385,1711890667701,-56941.97,0.000577,6]
[321090386,1711890667711,-32589.58,0.000577,6]
[321090387,1711890667723,-26076.13,0.000577,6]
[321090388,1711890667733,-4093.64,0.000577,6]
[321090389,1711890667743,-100262.92,0.000577,6]
[321090390,1711890667753,-26664.22,0.000577,6]
[321090391,1711890667763,-16512.28,0.000577,6]
[321090392,1711890667773,-45588.15,0.000577,6]
[321090393,1711890667784,-45332.38,0.000577,6]
[321090394,1711890667794,-500.0,0.00057808,2]
[321090395,1711890667804,-654.97,0.00057808,120]
[321090396,1711890667814,-500.0,0.00057808,120]
[321090397,1711890667823,-500.0,0.00057808,120]
[321090398,1711890667833,-1139.05,0.00057808,120]
[321090399,1711890667844,-500.0,0.00057808,120]
[321090400,1711890667854,-1647.33,0.00057808,120]
[321090401,1711890667863,-500.0,0.00057808,120]
[321090402,1711890667874,-2280.35,0.00057808,120]
[321090403,1711890667884,-1969.2,0.00057808,120]
[321090404,1711890667894,-11044.72,0.00057808,120]
[321090405,1711890667904,-1309.04,0.00057808,120]
[321090406,1711890667914,-2277.86,0.00057808,120]
[321090407,1711890667923,-2650.98,0.00057808,120]
[321090408,1711890667933,-3032.14,0.00057808,120]
[321090409,1711890667945,-978.66,0.00057808,120]
[321090410,1711890667955,-1119.85,0.00057808,120]
[321090411,1711890667966,-588.29,0.00057808,120]
[321090412,1711890667976,-500.0,0.00057808,120]
[321090413,1711890667986,-240.47,0.00057808,120]
[321090414,1711890667995,-7777.83,0.00057808,120]
[321090415,1711890668006,-1346.83,0.00057808,120]
[321090416,1711890668016,-2591.83,0.00057808,120]
[321090417,1711890668025,-268.96847423,0.00057808,120]
[321090418,1711890668034,-2450.66,0.00057808,120]
[321090419,1711890668043,-595.24,0.00057808,120]
[321090420,1711890668052,-5656.68,0.00057808,120]
[321090421,1711890668062,-1878.45,0.00057808,120]
[321090422,1711890668072,-588.1,0.00057808,16]
[321090423,1711890668081,-500.0,0.00057808,120]
[321090424,1711890668091,-1202.32,0.00057808,120]
[321090425,1711890668100,-2751.89,0.00057808,120]
[321090426,1711890668109,-500.0,0.00057808,120]
[321090427,1711890668118,-3264.01,0.00057808,120]
[321090428,1711890668127,-500.0,0.00057808,120]
[321090429,1711890668137,-311.76,0.00057808,120]
[321090430,1711890668146,-1852.77,0.00057808,120]
[321090431,1711890668156,-1531.24,0.00057808,120]
[321090432,1711890668165,-500.0,0.00057808,120]
[321090433,1711890668174,-1444.64,0.00057808,120]
[321090434,1711890668184,-5674.98,0.00057808,120]
[321090435,1711890668194,-962.6,0.00057808,120]
[321090436,1711890668203,-1699.03,0.00057808,120]
[321090437,1711890668213,-6457.47,0.00057808,120]
[321090438,1711890668222,-1686.23,0.00057808,120]
[321090439,1711890668232,-500.0,0.00057808,120]
[321090440,1711890668242,-500.0,0.00057808,120]
[321090441,1711890668251,-10031.1,0.00057808,120]
[321090442,1711890668260,-2964.31,0.00057808,120]
[321090443,1711890668270,-500.0,0.00057808,120]
[321090444,1711890668280,-199.87595328,0.00057808,120]
[321090445,1711890668290,-1738.4,0.00057808,120]
[321090446,1711890668299,-1786.68,0.00057808,120]
[321090447,1711890668308,-1500.14,0.00057808,120]
[321090448,1711890668318,-562.17,0.00057808,120]
[321090449,1711890668328,-2517.9,0.00057808,120]
[321090450,1711890668337,-693.94,0.00057808,120]
[321090451,1711890668346,-500.0,0.00057808,120]
[321090452,1711890668355,-500.0,0.00057808,120]
[321090453,1711890668364,-4170.51,0.00057808,120]
[321090454,1711890668375,-314.83477749,0.00057808,120]
[321090455,1711890668385,-811.03,0.00057808,120]
[321090456,1711890668394,-500.0,0.00057808,120]
[321090457,1711890668403,-500.0,0.00057808,120]
[321090458,1711890668412,-2488.29,0.00057808,120]
[321090459,1711890668421,-559.28,0.00057808,120]
[321090460,1711890668430,-14317.17,0.00057808,120]
[321090461,1711890668440,-1685.81,0.00057808,120]
[321090462,1711890668453,-1854.38,0.00057808,120]
[321090463,1711890668463,-12588.85,0.00057808,120]
[321090464,1711890668472,-500.0,0.00057808,120]
[321090465,1711890668481,-1750.28,0.00057808,120]
[321090466,1711890668492,-3585.51,0.00057808,21]
[321090467,1711890668504,-1112.33,0.00057808,120]
[321090468,1711890668514,-524.87,0.00057808,120]
[321090469,1711890668524,-1107.53,0.00057808,120]
[321090470,1711890668534,-500.0,0.00057808,120]
[321090471,1711890668543,-500.0,0.00057808,120]
[321090472,1711890668553,-500.0,0.00057808,120]
[321090473,1711890668562,-1340.14,0.00057808,120]
[321090474,1711890668573,-200.0,0.00057987,2]
[321090475,1711890668583,-11773.17073824,0.0005799,30]
[321090476,1711890668592,-100000.0,0.00058,58]
[321090477,1711890668602,-500.0,0.00058,120]
[321090478,1711890668612,-2000.0,0.00058,120]
[321090479,1711890668622,-1000.0,0.00058,120]
[321090480,1711890668631,-250.0,0.00058,90]
[321090481,1711890668641,-150.0,0.00058,120]
[321090482,1711890668650,-150.0,0.00058,120]
[321090483,1711890668659,-150.0,0.00058,120]
[321090484,1711890668670,-25000.0,0.00058,120]
[321090485,1711890668680,-9000.0,0.00058,30]
[321090486,1711890668689,-163.36,0.00058,30]
[321090487,1711890668701,-500.0,0.00058082,120]
[321090488,1711890668710,-500.0,0.00058082,2]
[321090489,1711890668719,-654.97,0.00058082,120]
[321090490,1711890668728,-500.0,0.00058082,120]
[321090491,1711890668737,-500.0,0.00058082,120]
[321090492,1711890668746,-1139.05,0.00058082,120]
[321090493,1711890668756,-500.0,0.00058082,120]
[321090494,1711890668765,-1647.33,0.00058082,120]
[321090495,1711890668775,-500.0,0.00058082,120]
[321090496,1711890668784,-2280.35,0.00058082,120]
[321090497,1711890668794,-1969.2,0.00058082,120]
[321090498,1711890668803,-11044.72,0.00058082,120]
[321090499,1711890668812,-1309.04,0.00058082,120]
[321090500,1711890668822,-2277.86,0.00058082,120]
[321090501,1711890668831,-2650.98,0.00058082,120]
[321090502,1711890668840,-3032.14,0.00058082,120]
[321090503,1711890668848,-978.66,0.00058082,120]
[321090504,1711890668858,-1119.85,0.00058082,120]
[321090505,1711890668868,-251.976457,0.00058082,120]
[321090506,1711890668877,-251.976457,0.00058082,120]
[321090507,1711890668888,-500.0,0.00058082,120]
[321090508,1711890668899,-7777.83,0.00058082,120]
[321090509,1711890668909,-1346.83,0.00058082,120]
[321090510,1711890668919,-2591.83,0.00058082,120]
[321090511,1711890668929,-2450.66,0.00058082,120]
[321090512,1711890668938,-595.24,0.00058082,120]
[321090513,1711890668949,-4021.10951786,0.00058082,120]
[321090514,1711890668978,-1415.92,0.00054794,120]
[321090515,1711890668987,-500.0,0.00054794,120]
[321090516,1711890668997,-500.0,0.00055068,120]
[321090517,1711890669006,-1635.57048214,0.00058082,120]
[321090518,1711890669015,-1878.45,0.00058082,120]
[321090519,1711890669025,-588.1,0.00058082,16]
[321090520,1711890669034,-417.46986402,0.00058082,120]
[321090521,1711890669044,-1202.32,0.00058082,120]
[321090522,1711890669053,-2751.89,0.00058082,120]
[321090523,1711890669062,-500.0,0.00058082,120]
[321090524,1711890669072,-3264.01,0.00058082,120]
[321090525,1711890669081,-500.0,0.00058082,120]
[321090526,1711890669091,-1366.63903303,0.00058082,120]
[321090527,1711890695997,196.8132292,0.00024,2]
[321090528,1711890696017,27.29427476,0.00024,2]
[321090529,1711890749717,169.51895444,0.00024,2]
[321090530,1711890749743,693.43371703,0.00024,2]
[321090531,1711890761713,862.95267147,0.00024,2]
[321090532,1711890767929,477.69324998,0.00024,2]
[321090533,1711890779695,862.95267147,0.00024,2]
[321090534,1711890795693,862.95267147,0.00024,2]
[321090535,1711890805718,155.0,0.000228,2]
[321090536,1711890815705,862.95267147,0.00024,2]
[321090537,1711890828228,6429.93136258,0.0002,10]
[321090538,1711890831715,701.53137254,0.00024,2]
[321090539,1711890897450,676.9636427,0.00024,10]
[321090542,1711891379220,-284.99900998,0.00030384,2]
[321090543,1711891379245,-738.35813102,0.00030482,4]
[321090544,1711891379271,-1000.0,0.00030482,4]
[321090545,1711891379296,-288.94929512,0.00030483,4]
[321090546,1711891379321,-179.32336699,0.00030487,2]
[321090547,1711891438070,224.05266408,0.00024,2]
[321090548,1711891615506,480.66028579,0.00027863,2]
[321090549,1711891625082,14871.60761603,0.00024,2]
[321090550,1711891628155,223.94252704,0.00024,2]
[321090561,1711891715136,10000.0,0.000305,2]
[321090562,1711891739724,151.52,0.00026851,2]
[321090578,1711891795229,-243.0,0.00030571,2]
[321090579,1711891795251,-1664.33004136,0.00030571,4]
[321090580,1711891795272,-1000.0,0.00030572,4]
[321090581,1711891795293,-2585.50988735,0.00030573,4]
[321090582,1711891795313,-866.44774191,0.00030573,4]
[321090583,1711891795333,-639.53706724,0.00030574,4]
[321090584,1711891796832,150.57600231,0.0003047,2]
[321090585,1711891818110,224.01259758,0.00024,2]
[321090601,1711891832142,-1016.81046128,0.0003057,4]
[321090602,1711891832154,-401.91125331,0.0003057,4]
[321090603,1711891832163,-216.82374668,0.0003058,4]
[321090604,1711891832175,-398.37336434,0.0003058,4]
[321090605,1711891832197,-1052.7378618,0.0003058,4]
[321090606,1711891832207,-464.91126254,0.00030581,4]
[321090607,1711891832217,-262.27698996,0.00030694,2]
[321090608,1711891832228,-347.75,0.00031546,2]
[321090609,1711891832238,-300.0,0.00032993,2]
[321090610,1711891832248,-350.0,0.00033,3]
[321090611,1711891832257,-250.0,0.00033381,2]
[321090612,1711891832267,-4052.3238857,0.00033437,2]
[321090613,1711891832278,-1016.27333657,0.00033437,2]
[321090614,1711891832464,-3645.27648316,0.00033437,2]
[321090615,1711891832496,-2207.73331184,0.00033437,2]
[321090616,1711891832508,-9924.74970688,0.00033437,2]
[321090617,1711891832521,-547.67000004,0.00033437,2]
[321090618,1711891832533,-2505.97327581,0.00033437,2]
[321090620,1711891832543,-1000.0,0.00033679,4]
[321090622,1711891832552,-197.87601914,0.00033679,4]
[321090624,1711891832561,-67132.69673461,0.00033679,2]
[321090626,1711891832572,-304793.76701037,0.00033679,2]
[321090628,1711891832581,-926.64029799,0.00033679,4]
[321090630,1711891832590,-1260.63473523,0.0003368,4]
[321090632,1711891832600,-1473.09619787,0.0003368,4]
[321090634,1711891832610,-150.0,0.0003368,3]
[321090636,1711891832619,-532.46,0.00033681,2]
[321090638,1711891832628,-9999.99,0.00033681,2]
[321090640,1711891832637,-7852.57,0.00033681,2]
[321090642,1711891832647,-380.77,0.00033717,2]
[321090644,1711891832656,-1027.69,0.00033729,2]
[321090646,1711891832665,-150.99,0.00033729,10]
[321090651,1711891832698,-150.99,0.00033729,2]
[321090653,1711891832708,-150.0,0.000338,2]
[321090655,1711891832717,-347.75,0.0003381,2]
[321090657,1711891832726,-1852.42,0.00033883,2]
[321090658,1711891832736,-1808.28,0.00033952,2]
[321090660,1711891832745,-686.77,0.00033952,2]
[321090662,1711891832754,-200.0,0.00033952,2]
[321090664,1711891832763,-500.0,0.00033965,2]
[321090666,1711891832773,-1101.67,0.00034034,2]
[321090668,1711891832782,-500.0,0.00034193,2]
[321090670,1711891832791,-999.99,0.0003459,2]
[321090672,1711891832800,-2866.98919122,0.000347,2]
[321090674,1711891832810,-2998.01,0.000347,2]
[321090676,1711891832822,-499.99,0.000347,2]
[321090678,1711891832832,-359.42005975,0.00034829,4]
[321090680,1711891832841,-281.68486016,0.00034829,4]
[321090682,1711891832850,-955.9882,0.00034829,4]
[321090685,1711891832861,-559.82471816,0.00034829,4]
[321090686,1711891832870,-282.16973355,0.00034829,4]
[321090688,1711891832880,-413.96660142,0.00034829,4]
[321090690,1711891832889,-155.70144668,0.0003483,4]
[321090692,1711891832899,-781.51,0.00034831,2]
[321090694,1711891832909,-2476.73336292,0.00034888,2]
[321090696,1711891832918,-805.24113731,0.00034898,2]
[321090698,1711891832927,-26636.70594256,0.00034898,2]
[321090700,1711891832936,-5935.25908869,0.00034898,7]
[321090702,1711891832945,-8906.64046727,0.00034898,2]
[321090705,1711891832954,-511.74,0.00034988,2]
[321090706,1711891832964,-179.89731775,0.00034988,2]
[321090708,1711891832973,-150.99,0.00034995,2]
[321090710,1711891832983,-533.4,0.00034995,2]
[321090712,1711891832993,-2080.21,0.00034995,2]
[321090714,1711891833002,-150.99,0.00034996,30]
[321090717,1711891833012,-500.0,0.00034997,7]
[321090718,1711891833020,-500.0,0.00034997,7]
[321090720,1711891833029,-500.0,0.00034997,7]
[321090722,1711891833038,-500.0,0.00034997,7]
[321090724,1711891833048,-500.0,0.00034997,7]
[321090727,1711891833057,-208.89514479,0.00034997,7]
[321090729,1711891833066,-500.0,0.00034997,7]
[321090731,1711891833075,-500.0,0.00034997,7]
[321090733,1711891833086,-500.0,0.00034997,7]
[321090735,1711891833094,-213.05942752,0.00034997,7]
[321090736,1711891833103,-500.0,0.00034997,7]
[321090738,1711891833112,-500.0,0.00034997,7]
[321090740,1711891833121,-500.0,0.00034997,7]
[321090743,1711891833130,-500.0,0.00034997,7]
[321090744,1711891833139,-500.0,0.00034997,7]
[321090746,1711891833148,-500.0,0.00034997,7]
[321090748,1711891833157,-500.0,0.00034997,7]
[321090750,1711891833167,-500.0,0.00034997,7]
[321090752,1711891833176,-500.0,0.00034997,7]
[321090754,1711891833185,-500.0,0.00034997,7]
[321090756,1711891833193,-500.0,0.00034997,7]
[321090758,1711891833203,-585.38044459,0.00034997,7]
[321090760,1711891833212,-500.0,0.00034997,7]
[321090762,1711891833221,-500.0,0.00034997,7]
[321090764,1711891833230,-500.0,0.00034997,7]
[321090766,1711891833240,-500.0,0.00034997,7]
[321090768,1711891833249,-500.0,0.00034997,7]
[321090770,1711891833258,-500.0,0.00034997,7]
[321090772,1711891833267,-500.0,0.00034997,7]
[321090774,1711891833276,-500.0,0.00034997,7]
[321090776,1711891833285,-500.0,0.00034997,7]
[321090778,1711891833294,-499.99999999,0.00034997,7]
[321090780,1711891833303,-224796.4623316,0.00034998,4]
[321090782,1711891833312,-51551.397,0.00034998,2]
[321090784,1711891833322,-400.0,0.00035,3]
[321090786,1711891833331,-457.12,0.00035092,2]
[321090788,1711891833339,-457.12,0.00035189,2]
[321090790,1711891833348,-457.12,0.00035285,2]
[321090792,1711891833357,-457.12,0.00035381,2]
[321090794,1711891833366,-457.12,0.00035477,2]
[321090796,1711891833376,-457.12,0.00035574,2]
[321090798,1711891833385,-457.12,0.0003567,2]
[321090800,1711891833394,-457.12,0.00035766,2]
[321090802,1711891833403,-457.12,0.00035862,2]
[321090804,1711891833413,-457.12,0.00035959,2]
[321090806,1711891833422,-16410.44745667,0.00036008,2]
[321090809,1711891833437,-3496.79815009,0.00036008,2]
[321090831,1711891833630,-2229.66439324,0.00036008,2]
[321090833,1711891833640,-457.12,0.00036055,2]
[321090835,1711891833648,-310.9834051,0.00036074,2]
[321090837,1711891833660,-36.7665949,0.00036074,2]
[321090839,1711891833669,-457.12,0.00036151,2]
[321090841,1711891833678,-457.12,0.00036247,2]
[321090843,1711891833688,-218.52960004,0.00036344,2]
[321091094,1711891836108,224.01259758,0.00024,2]
[321091286,1711891837800,-238.59039996,0.00036344,2]
[321091289,1711891837809,-457.12,0.0003644,2]
[321091290,1711891837821,-457.12,0.00036536,2]
[321091292,1711891837830,-457.12,0.00036632,2]
[321091295,1711891837839,-983.23466584,0.00036691,2]
[321091299,1711891837850,-825.04533416,0.00036691,2]
[321091301,1711891837859,-457.12,0.00036729,2]
[321091303,1711891837869,-457.12,0.00036825,2]
[321091305,1711891837878,-511.74,0.00036858,2]
[321091306,1711891837887,-599.82387691,0.00036868,2]
[321091316,1711891837966,-532.58193875,0.00036868,2]
[321091318,1711891837975,-457.12,0.00036921,2]
[321091320,1711891837986,-450.0,0.00037,3]
[321091322,1711891837995,-163.48,0.00037612,2]
[321091324,1711891838004,-150.56,0.00038027,15]
[321091326,1711891838013,-347.75,0.00038338,2]
[321091328,1711891838022,-26636.70594254,0.00038409,2]
[321091330,1711891838031,-8906.64046723,0.00038409,2]
[321091332,1711891838042,-1132.40581556,0.00038985,2]
[321091334,1711891838050,-5935.25908864,0.00039331,9]
[321091336,1711891838059,-1808.28,0.00039431,2]
[321091338,1711891838068,-329.16,0.00039961,2]
[321091340,1711891838077,-3347.8317364,0.0004,4]
[321091342,1711891838086,-805.24113727,0.00040121,2]
[321091344,1711891838095,-347.75,0.00040602,2]
[321091346,1711891838104,-505.0,0.00040685,7]
[321091348,1711891838113,-1000.0,0.00040858,2]
[321091350,1711891838122,-1132.40581556,0.00041101,2]
[321091352,1711891838131,-505.0,0.00041644,7]
[321091354,1711891838140,-26636.70594254,0.00041921,2]
[321091356,1711891838149,-1255.00474766,0.00041921,2]
[321091359,1711891838168,-7651.63571957,0.00041921,2]
[321091361,1711891838176,-545.78149985,0.00042416,7]
[321091363,1711891838185,-10000.0,0.00042784,30]
[321091365,1711891838195,-156.41,0.000428,4]
[321091367,1711891838204,-156.41,0.000428,4]
[321091369,1711891838213,-156.41,0.000428,4]
[321091371,1711891838222,-156.41,0.000428,4]
[321091373,1711891838232,-156.41,0.000428,4]
[321091375,1711891838241,-156.41,0.000428,4]
[321091377,1711891838250,-261.24666634,0.00042813,4]
[321091379,1711891838260,-347.75,0.00042866,2]
[321091381,1711891838268,-1132.40581556,0.00043218,2]
[321091383,1711891838278,-1404.03,0.00043425,2]
[321091385,1711891838287,-1404.03,0.00043437,2]
[321091387,1711891838296,-1404.03,0.00043448,2]
[321091389,1711891838305,-1404.03,0.00043459,2]
[321091391,1711891838314,-1404.03,0.00043471,2]
[321091393,1711891838323,-1404.03,0.00043482,2]
[321091395,1711891838332,-1404.03,0.00043494,2]
[321091397,1711891838342,-1404.03,0.00043505,2]
[321091399,1711891838352,-1404.03,0.00043516,2]
[321091401,1711891838361,-1404.03,0.00043528,2]
[321091403,1711891838370,-1404.03,0.00043539,2]
[321091405,1711891838379,-1404.03,0.00043551,2]
[321091407,1711891838388,-1404.03,0.00043562,2]
[321091410,1711891838397,-1404.03,0.00043574,2]
[321091411,1711891838406,-1404.03,0.00043585,2]
[321091412,1711891838415,-1404.03,0.00043596,2]
[321091413,1711891838424,-1404.03,0.00043608,2]
[321091414,1711891838433,-1404.03,0.00043619,2]
[321091415,1711891838442,-1404.03,0.00043631,2]
[321091416,1711891838451,-1404.03,0.00043642,2]
[321091417,1711891838463,-5935.25908864,0.00043763,11]
[321091418,1711891838472,-2607.84717864,0.00044,30]
[321091419,1711891838481,-1027.69,0.00044962,120]
[321091420,1711891838490,-5000.0,0.00044986,4]
[321091421,1711891838499,-1468.86040058,0.00045,120]
[321091422,1711891838509,-328.07527769,0.00045,4]
[321091423,1711891838518,-347.75,0.00045129,2]
[321091424,1711891838528,-1132.40581556,0.00045334,2]
[321091425,1711891838537,-805.24113727,0.00045344,2]
[321091426,1711891838546,-26636.70594254,0.00045432,2]
[321091427,1711891838557,-8906.64046723,0.00045432,2]
[321091428,1711891838566,-1000.0,0.00045965,2]
[321091429,1711891838575,-156.41,0.000465,5]
[321091430,1711891838583,-156.41,0.000465,5]
[321091431,1711891838592,-156.41,0.000465,5]
[321091432,1711891838601,-156.41,0.000465,5]
[321091433,1711891838610,-156.41,0.000465,5]
[321091434,1711891838618,-156.41,0.000465,5]
[321091435,1711891838627,-347.75,0.00047393,2]
[321091436,1711891838638,-1132.40581556,0.00047451,2]
[321091437,1711891838647,-511.74,0.00047476,2]
[321091438,1711891838657,-3076.01,0.00047486,2]
[321091439,1711891838667,-176.3,0.00048034,2]
[321091440,1711891838676,-5935.25908864,0.00048196,13]
[321091441,1711891838685,-150.56,0.00048301,15]
[321091442,1711891838694,-707.4976319,0.0004849,10]
[321091443,1711891838703,-1034.0,0.000487,117]
[321091444,1711891838711,-781.51,0.00048763,2]
[321091445,1711891838721,-996.18,0.000488,2]
[321091446,1711891838730,-169.23,0.00048895,2]
[321091447,1711891838739,-26636.70594254,0.00048943,2]
[321091448,1711891838748,-8906.64046723,0.00048943,2]
[321091449,1711891838757,-696.13981054,0.00049,30]
[321091450,1711891838767,-1200.0,0.00049,4]
[321091451,1711891838776,-1000.0,0.00049315,60]
[321091452,1711891838785,-1132.40581556,0.00049567,2]
[321091453,1711891838795,-347.75,0.00049657,2]
[321091454,1711891838804,-3555.04572402,0.0005,10]
[321091455,1711891838815,-27063.55526501,0.0005,4]
[321091456,1711891838827,-10000.0,0.0005,7]
[321091457,1711891838837,-996.18,0.00050125,2]
[321091458,1711891838846,-1000.0,0.00050136,64]
[321091459,1711891838855,-156.41,0.000503,6]
[321091460,1711891838865,-156.41,0.000503,6]
[321091461,1711891838875,-156.41,0.000503,6]
[321091462,1711891838885,-156.41,0.000503,6]
[321091463,1711891838896,-156.41,0.000503,6]
[321091464,1711891839118,-156.41,0.000503,6]
[321091465,1711891839128,-805.24113727,0.00050567,2]
[321091466,1711891839137,-1000.0,0.00050958,68]
[321091467,1711891839147,-1000.0,0.00051073,120]
[321091468,1711891839157,-329.16,0.00051194,120]
[321091469,1711891839168,-996.18,0.0005145,2]
[321091470,1711891839178,-155.0,0.00051654,4]
[321091471,1711891839187,-1132.40581556,0.00051684,2]
[321091472,1711891839197,-1000.0,0.0005178,72]
[321091473,1711891839207,-347.75,0.00051921,2]
[321091474,1711891839216,-675.75855417,0.00052051,4]
[321091475,1711891839226,-2033.0,0.00052055,120]
[321091476,1711891839236,-26636.70594254,0.00052455,2]
[321091477,1711891839245,-8906.64046723,0.00052455,2]
[321091478,1711891839254,-1000.0,0.00052602,120]
[321091479,1711891839264,-5935.25908864,0.00052629,14]
[321091480,1711891839273,-996.18,0.00052775,2]
[321091481,1711891839283,-1000.0,0.00053424,120]
[321091482,1711891839293,-387.14158954,0.0005375,30]
[321091483,1711891839304,-1132.40581556,0.00053801,2]
[321091484,1711891839313,-151.69724411,0.000539,59]
[321091486,1711891839324,-165.24873058,0.000539,54]
[321091487,1711891839334,-6575.42562246,0.000539,31]
[321091488,1711891839345,-511.74,0.0005399,2]
[321091489,1711891839355,-511.74,0.0005399,2]
[321091490,1711891839364,-511.74,0.0005399,2]
[321091491,1711891839373,-500000.0,0.00054,2]
[321091492,1711891839382,-150.0,0.00054,11]
[321091493,1711891839391,-156.41,0.00054,7]
[321091494,1711891839401,-156.41,0.00054,7]
[321091495,1711891839410,-156.41,0.00054,7]
[321091496,1711891839419,-156.41,0.00054,7]
[321091497,1711891839429,-156.41,0.00054,7]
[321091498,1711891839438,-156.41,0.00054,7]
[321091500,1711891839447,-996.18,0.000541,2]
[321091501,1711891839457,-347.75,0.00054185,2]
[321091502,1711891839467,-1000.0,0.00054246,120]
[321091503,1711891839477,-1000.0,0.00054658,30]
[321091504,1711891839487,-190.47272846,0.00054694,32]
[321091506,1711891839497,-511.74,0.00054784,30]
[321091507,1711891839508,-167.92,0.00054789,2]
[321091508,1711891839517,-265.90282322,0.0005479,4]
[321091509,1711891839526,-155.0,0.0005479,4]
[321091510,1711891839535,-2167.17725752,0.0005479,4]
[321091511,1711891839544,-173.50615494,0.0005479,4]
[321091512,1711891839554,-649.33286182,0.0005479,4]
[321091513,1711891839563,-262.26705623,0.0005479,4]
[321091514,1711891839572,-283.74325837,0.0005479,4]
[321091515,1711891839582,-170.25865845,0.0005479,4]
[321091516,1711891839591,-313.09081825,0.0005479,4]